fUST/lending_fUST_20250412
["ID","MTS","AMOUNT","RATE_DAILY","PERIOD"]
[357742765,1744421432090,-500.0,0.00022996,2]
[357742766,1744421432100,-500.0,0.00022996,2]
[357742767,1744421432110,-500.0,0.00022996,2]
[357742769,1744421432119,-500.0,0.00022996,2]
[357742771,1744421432129,-500.0,0.00022996,2]
[357742772,1744421432139,-500.0,0.00022996,2]
[357742773,1744421432149,-500.0,0.00022996,2]
[357742775,1744421432158,-500.0,0.00022996,2]
[357742777,1744421432169,-500.0,0.00022996,2]
[357742778,1744421432178,-500.0,0.00022996,2]
[357742779,1744421432188,-500.0,0.00022996,2]
[357742780,1744421432199,-500.0,0.00022996,2]
[357742781,1744421432209,-500.0,0.00022996,2]
[357742782,1744421432219,-500.0,0.00022996,2]
[357742783,1744421432229,-500.0,0.00022996,2]
[357742784,1744421432241,-500.0,0.00022996,2]
[357742785,1744421432251,-500.0,0.00022996,2]
[357742786,1744421432261,-500.0,0.00022996,2]
[357742787,1744421432273,-500.0,0.00022996,2]
[357742788,1744421432283,-500.0,0.00022996,2]
[357742789,1744421432298,-500.0,0.00022996,2]
[357742790,1744421432308,-500.0,0.00022996,2]
[357742791,1744421432318,-500.0,0.00022996,2]
[357742792,1744421432328,-500.0,0.00022996,2]
[357742793,1744421432339,-500.0,0.00022996,2]
[357742794,1744421432348,-500.0,0.00022996,2]
[357742795,1744421432358,-500.0,0.00022996,2]
[357742796,1744421432368,-500.0,0.00022996,2]
[357742797,1744421432378,-500.0,0.00022996,2]
[357742798,1744421432388,-500.0,0.00022996,2]
[357742799,1744421432398,-500.0,0.00022996,2]
[357742800,1744421432408,-500.0,0.00022996,2]
[357742801,1744421432418,-500.0,0.00022996,2]
[357742802,1744421432429,-500.0,0.00022996,2]
[357742803,1744421432439,-500.0,0.00022996,2]
[357742804,1744421432449,-500.0,0.00022996,2]
[357742805,1744421432459,-500.0,0.00022996,2]
[357742806,1744421432469,-500.0,0.00022996,2]
[357742807,1744421432479,-500.0,0.00022996,2]
[357742808,1744421432488,-500.0,0.00022996,2]
[357742809,1744421432498,-266.53215262,0.00022996,2]
[357742810,1744421432508,-500.0,0.00022996,2]
[357742811,1744421432518,-500.0,0.00022996,2]
[357742812,1744421432528,-500.0,0.00022996,2]
[357742813,1744421432537,-500.0,0.00022996,2]
[357742814,1744421432546,-500.0,0.00022996,2]
[357742815,1744421432556,-500.0,0.00022996,2]
[357742816,1744421432566,-500.0,0.00022996,2]
[357742817,1744421432576,-500.0,0.00022996,2]
[357742818,1744421432586,-500.0,0.00022996,2]
[357742819,1744421432596,-500.0,0.00022996,2]
[357742820,1744421432606,-500.0,0.00022996,2]
[357742821,1744421432616,-500.0,0.00022996,2]
[357742822,1744421432848,-500.0,0.00022996,2]
[357742823,1744421432871,-500.0,0.00022996,2]
[357742824,1744421432881,-500.0,0.00022996,2]
[357742825,1744421432890,-500.0,0.00022996,2]
[357742826,1744421432900,-500.0,0.00022996,2]
[357742827,1744421432909,-500.0,0.00022996,2]
[357742828,1744421432919,-500.0,0.00022996,2]
[357742829,1744421432928,-500.0,0.00022996,2]
[357742830,1744421432938,-500.0,0.00022996,2]
[357742831,1744421432947,-485.0,0.00022996,2]
[357742832,1744421432957,-500.0,0.00022996,2]
[357742833,1744421432967,-412.52728579,0.00022996,2]
[357742834,1744421432976,-12436.23969754,0.00023,2]
[357742835,1744421432989,-11868.84030246,0.00023,2]
[357742836,1744421432998,-500.0,0.00024088,2]
[357742837,1744421433008,-157.0525262,0.00024152,2]
[357742838,1744421433018,-600.0,0.00024174,2]
[357742839,1744421433027,-527.7055826,0.0002426,2]
[357742840,1744421433037,-500.0,0.00024291,2]
[357742841,1744421433046,-527.70558258,0.00024295,2]
[357742842,1744421433057,-527.70558258,0.0002433,2]
[357742843,1744421433067,-256.79,0.0002435,3]
[357742844,1744421433077,-770.37,0.0002435,3]
[357742845,1744421433088,-581.97739279,0.00024359,2]
[357742846,1744421433098,-102078.15776213,0.0002436,2]
[357742847,1744421433108,-815.14708184,0.0002436,3]
[357742848,1744421433117,-17242.08478137,0.0002436,3]
[357742849,1744421433130,-425.68871941,0.0002436,3]
[357742894,1744421438296,-1299.0,0.0002436,3]
[357742901,1744421440332,-22439.42952389,0.0002436,3]
[357742902,1744421440342,-160.0,0.0002436,3]
[357742903,1744421440352,-151.0,0.0002436,7]
[357742904,1744421440362,-151.0,0.0002436,7]
[357742905,1744421440371,-151.0,0.0002436,2]
[357742906,1744421440381,-233.983496,0.0002436,2]
[357742907,1744421440392,-151.0,0.0002436,7]
[357742908,1744421440402,-192.513849,0.0002436,7]
[357742909,1744421440411,-192.513849,0.0002436,7]
[357742910,1744421440421,-154.656623,0.0002436,7]
[357742911,1744421440432,-151.0,0.0002436,7]
[357742912,1744421440442,-151.0,0.0002436,7]
[357742913,1744421440452,-151.0,0.0002436,7]
[357742914,1744421440462,-151.0,0.0002436,7]
[357742915,1744421440472,-154.928399,0.0002436,7]
[357742916,1744421440481,-151.0,0.0002436,7]
[357742917,1744421440491,-151.0,0.0002436,7]
[357742918,1744421440500,-527.70558258,0.00024365,2]
[357742919,1744421440509,-1340.2076407,0.000244,2]
[357742920,1744421440519,-151.0,0.000244,7]
[357742921,1744421440529,-171.244306,0.000244,7]
[357742922,1744421440539,-527.70558258,0.000244,2]
[357742923,1744421440548,-160.0,0.00024409,2]
[357742924,1744421440558,-500.0,0.00024433,2]
[357742925,1744421440567,-500.0,0.00024473,2]
[357742926,1744421440577,-151.0,0.00024485,2]
[357742927,1744421440587,-151.0,0.00024485,2]
[357742928,1744421440596,-207.4,0.00024485,2]
[357742929,1744421440606,-151.0,0.00024499,7]
[357742930,1744421440616,-151.0,0.00024499,2]
[357742931,1744421440625,-151.0,0.00024499,7]
[357742932,1744421440635,-192.513849,0.00024499,7]
[357742933,1744421440645,-192.513849,0.00024499,7]
[357742934,1744421440655,-17173.17129828,0.000245,2]
[357742935,1744421440667,-649.73345621,0.000245,2]
[357742952,1744421442945,-2439.61091069,0.000245,2]
[357742956,1744421443048,-450.00106204,0.000245,2]
[357742957,1744421443060,-1364.26537925,0.000245,2]
[357742993,1744421446049,-550.79934127,0.00022995,2]
[357742994,1744421446059,-500.0,0.00022995,2]
[357742995,1744421446069,-3469.14907002,0.000245,2]
[357742996,1744421446081,-22761.25093339,0.000245,2]
[357742997,1744421446093,-443.970125,0.000245,2]
[357742998,1744421446156,-353.0720424,0.000245,2]
[357742999,1744421446167,-281787.26240425,0.000245,2]
[357743000,1744421446179,-6160.0,0.000245,2]
[357743052,1744422631920,-300.0,0.00022043,2]
[357743053,1744422631931,-500.0,0.00022044,2]
[357743054,1744422631943,-500.0,0.00022044,2]
[357743055,1744422631960,-500.0,0.00022044,2]
[357743056,1744422631970,-377.43715281,0.00022044,2]
[357743057,1744422631980,-500.0,0.00022044,2]
[357743058,1744422631992,-500.0,0.00022044,2]
[357743059,1744422632002,-500.0,0.00022044,2]
[357743060,1744422632013,-2128.59295977,0.00022045,2]
[357743061,1744422632026,-20193.44454773,0.00022045,2]
[357743062,1744422632036,-1192.0,0.000228,2]
[357743063,1744422632046,-18681.74519571,0.000228,2]
[357743064,1744422632056,-282.34797454,0.00022865,2]
[357743065,1744422632066,-929.57930393,0.00022894,2]
[357743066,1744422632076,-250.0,0.00022894,2]
[357743067,1744422632085,-528.25769899,0.000229,4]
[357743068,1744422632095,-504.14771192,0.00022973,2]
[357743069,1744422632105,-155.35626229,0.00022973,2]
[357743070,1744422632116,-506.4973028,0.00022973,2]
[357743071,1744422632126,-880.0,0.00023,2]
[357743072,1744422632136,-2202.0,0.00023,2]
[357743073,1744422632146,-1702.0,0.00023,2]
[357743074,1744422632156,-151.0,0.00023,7]
[357743075,1744422632165,-151.0,0.00023,7]
[357743076,1744422632175,-600.0,0.0002315,2]
[357743077,1744422632185,-528.2576989,0.00023486,4]
[357743079,1744422632195,-346.67254117,0.00023493,2]
[357743082,1744422632205,-837.59699578,0.00023493,2]
[357743084,1744422632214,-160.0,0.00023493,2]
[357743086,1744422632224,-360.1490082,0.00023699,2]
[357743088,1744422632234,-500.0,0.00023861,2]
[357743089,1744422632256,-420.0,0.00023952,2]
[357743090,1744422632267,-466.2150728,0.00024018,2]
[357743091,1744422632278,-528.2576989,0.00024072,5]
[357743092,1744422632288,-600.0,0.00024094,2]
[357743093,1744422632299,-500.0,0.000241,2]
[357743094,1744422632309,-500.0,0.0002415,2]
[357743095,1744422632319,-251.6150178,0.00024152,2]
[357743096,1744422632330,-2851.65786798,0.00024341,2]
[357743097,1744422632340,-151.0,0.0002436,7]
[357743098,1744422632350,-151.0,0.0002436,7]
[357743099,1744422632360,-151.0,0.0002436,7]
[357743100,1744422632370,-151.0,0.0002436,7]
[357743101,1744422632379,-311.61907,0.0002436,7]
[357743102,1744422632390,-311.61907,0.0002436,7]
[357743103,1744422632400,-311.61907,0.0002436,7]
[357743104,1744422632410,-311.61907,0.0002436,7]
[357743105,1744422632420,-500.898905,0.00024373,2]
[357743106,1744422632430,-509.74242756,0.00024373,2]
[357743107,1744422632440,-566.08157586,0.00024373,2]
[357743108,1744422632743,-500.24542639,0.00024373,2]
[357743109,1744422632753,-183.08172933,0.00024373,2]
[357743110,1744422632769,-353.24094715,0.00024373,2]
[357743111,1744422632779,-279.77807163,0.00024373,2]
[357743112,1744422632790,-500.47581544,0.00024373,2]
[357743113,1744422632800,-263.67610625,0.00024373,2]
[357743114,1744422632810,-502.97344443,0.00024373,2]
[357743115,1744422632820,-501.14435883,0.00024373,2]
[357743116,1744422632831,-200.0,0.00024373,2]
[357743117,1744422632841,-505.04514467,0.00024373,2]
[357743118,1744422632851,-500.53532422,0.00024373,2]
[357743119,1744422632860,-500.62401949,0.00024373,2]
[357743120,1744422632870,-505.79292028,0.00024373,2]
[357743121,1744422632880,-394.31933867,0.00024373,2]
[357743122,1744422632889,-502.65937861,0.00024373,2]
[357743123,1744422632900,-259.92386054,0.00024373,2]
[357743124,1744422632909,-502.95133448,0.00024373,2]
[357743125,1744422632919,-500.0,0.00024373,2]
[357743126,1744422632929,-501.02072245,0.00024373,2]
[357743127,1744422632939,-501.40074874,0.00024373,2]
[357743128,1744422632951,-366.895145,0.00024373,2]
[357743129,1744422632961,-504.2959833,0.00024373,2]
[357743130,1744422632971,-500.57263667,0.00024373,2]
[357743131,1744422632980,-501.72005794,0.00024373,2]
[357743132,1744422632991,-508.53659658,0.00024373,2]
[357743133,1744422633000,-501.57118886,0.00024373,2]
[357743134,1744422633010,-502.07735595,0.00024373,2]
[357743135,1744422633020,-462.4174285,0.00024373,2]
[357743136,1744422633030,-501.42247813,0.00024373,2]
[357743137,1744422633041,-500.0,0.00024373,2]
[357743138,1744422633051,-500.0,0.00024373,2]
[357743139,1744422633061,-476.23761559,0.00024373,2]
[357743140,1744422633071,-501.88496693,0.00024373,2]
[357743141,1744422633082,-500.55997672,0.00024373,2]
[357743142,1744422633092,-500.0,0.00024373,2]
[357743143,1744422633102,-501.28330869,0.00024373,2]
[357743144,1744422633112,-500.28072125,0.00024373,2]
[357743145,1744422633122,-500.0,0.00024373,2]
[357743146,1744422633133,-500.0,0.00024373,2]
[357743147,1744422633143,-151.0,0.00024385,2]
[357743148,1744422633153,-207.4,0.00024385,2]
[357743149,1744422633163,-557.28,0.0002439,3]
[357743150,1744422633173,-412.28963992,0.00024398,2]
[357743151,1744422633183,-161.54494017,0.00024399,2]
[357743152,1744422633194,-370000.0,0.000244,2]
[357743154,1744422633204,-153.0,0.00024466,2]
[357743155,1744422633214,-213.554439,0.00024466,2]
[357743156,1744422633224,-158.23779498,0.00024473,2]
[357743157,1744422633234,-500.74963603,0.00024473,2]
[357743158,1744422633244,-500.0,0.00024473,2]
[357743159,1744422633255,-500.0,0.00024473,2]
[357743160,1744422633264,-151.0,0.00024485,2]
[357743161,1744422633275,-151.0,0.000245,7]
[357743162,1744422633285,-151.0,0.000245,7]
[357743163,1744422633295,-151.0,0.000245,7]
[357743164,1744422633307,-151.0,0.000245,7]
[357743165,1744422633317,-151.0,0.000245,7]
[357743166,1744422633327,-151.0,0.000245,6]
[357743167,1744422633337,-151.0,0.000245,7]
[357743168,1744422633347,-151.0,0.000245,7]
[357743169,1744422633358,-151.0,0.000245,7]
[357743170,1744422633368,-151.0,0.000245,7]
[357743171,1744422633381,-221.757418,0.000245,7]
[357743172,1744422633391,-311.61907,0.000245,7]
[357743173,1744422633402,-311.61907,0.000245,7]
[357743174,1744422633412,-156.587,0.0002454,2]
[357743175,1744422633423,-162.380719,0.00024595,2]
[357743176,1744422633433,-500.0,0.000246,2]
[357743177,1744422633444,-500.0,0.000246,2]
[357743178,1744422633454,-151.0,0.000246,8]
[357743179,1744422633464,-151.0,0.000246,7]
[357743180,1744422633474,-168.3888056,0.0002465,2]
[357743181,1744422633484,-528.2576989,0.00024659,5]
[357743182,1744422633494,-151.0,0.00024676,7]
[357743183,1744422633505,-600.0,0.00024687,2]
[357743184,1744422633516,-151.0,0.000247,10]
[357743185,1744422633526,-151.0,0.000247,5]
[357743186,1744422633536,-151.0,0.000247,6]
[357743187,1744422633547,-311.61907,0.000247,7]
[357743188,1744422633557,-311.61907,0.000247,7]
[357743189,1744422633567,-174.61919141,0.00024705,2]
[357743190,1744422633577,-208.067,0.00024727,2]
[357743191,1744422633587,-545.026,0.00024727,2]
[357743192,1744422633596,-709.11,0.00024727,2]
[357743193,1744422633606,-471.646,0.00024727,2]
[357743194,1744422633617,-150.111,0.00024727,2]
[357743195,1744422633627,-402.0,0.00024727,2]
[357743196,1744422633637,-500.0,0.00024747,2]
[357743197,1744422633647,-600.0,0.00024753,2]
[357743198,1744422633658,-600.0,0.00024756,2]
[357743199,1744422633668,-181.08010149,0.0002476,2]
[357743200,1744422633679,-600.0,0.00024783,2]
[357743201,1744422633689,-183.56220807,0.00024799,2]
[357743202,1744422633699,-151.0,0.00024799,7]
[357743203,1744422633709,-176.38753068,0.00024799,2]
[357743204,1744422633719,-250.0,0.000248,2]
[357743205,1744422633728,-250.0,0.000248,2]
[357743206,1744422633739,-250.0,0.000248,2]
[357743207,1744422633749,-151.0,0.000248,6]
[357743208,1744422633759,-151.0,0.000248,5]
[357743209,1744422633771,-151.0,0.000248,7]
[357743210,1744422633782,-151.0,0.000248,9]
[357743211,1744422633792,-187.78006525,0.00024815,2]
[357743212,1744422633803,-600.0,0.00024849,2]
[357743213,1744422633814,-181.08483397,0.0002486,7]
[357743214,1744422633824,-181.08483397,0.0002486,7]
[357743215,1744422633836,-181.08483397,0.0002486,7]
[357743216,1744422633846,-181.08483397,0.0002486,7]
[357743217,1744422633857,-181.08483397,0.0002486,7]
[357743218,1744422633867,-181.08483397,0.0002486,7]
[357743219,1744422633876,-181.08483397,0.0002486,7]
[357743220,1744422633887,-181.08483397,0.0002486,7]
[357743221,1744422633896,-181.08483397,0.0002486,7]
[357743222,1744422633907,-181.08483397,0.0002486,7]
[357743223,1744422633916,-181.08483397,0.0002486,7]
[357743224,1744422633926,-181.08483397,0.0002486,7]
[357743225,1744422633937,-181.08483397,0.0002486,7]
[357743226,1744422633950,-181.08483397,0.0002486,7]
[357743227,1744422633960,-181.08483397,0.0002486,7]
[357743228,1744422633970,-181.08483397,0.0002486,7]
[357743229,1744422633981,-181.08483397,0.0002486,7]
[357743230,1744422633991,-181.08483397,0.0002486,7]
[357743231,1744422634002,-361.96966793,0.0002486,7]
[357743232,1744422634012,-194.72792766,0.0002487,2]
[357743233,1744422634024,-167.49172592,0.00024873,2]
[357743234,1744422634034,-160.195878,0.00024873,2]
[357743235,1744422634044,-500.52175608,0.00024873,2]
[357743236,1744422634054,-151.0,0.00024873,7]
[357743237,1744422634065,-151.0,0.00024873,7]
[357743238,1744422634075,-311.61907,0.00024873,7]
[357743239,1744422634084,-311.61907,0.00024873,7]
[357743240,1744422634095,-160.0,0.00024873,7]
[357743241,1744422634105,-151.0,0.00024891,7]
[357743242,1744422634115,-93415.73815538,0.00024899,2]
[357743243,1744422634125,-805.7634359,0.00024899,3]
[357743244,1744422634135,-192.0,0.000249,4]
[357743245,1744422634146,-200.57649029,0.000249,3]
[357743246,1744422634156,-151.0,0.000249,7]
[357743247,1744422634166,-151.0,0.000249,7]
[357743248,1744422634176,-151.0,0.000249,7]
[357743249,1744422634186,-151.0,0.000249,7]
[357743250,1744422634195,-281.868993,0.000249,7]
[357743251,1744422634205,-151.0,0.000249,7]
[357743252,1744422634216,-151.0,0.000249,7]
[357743253,1744422634226,-151.0,0.000249,7]
[357743254,1744422634235,-151.0,0.000249,7]
[357743255,1744422634246,-151.0,0.000249,7]
[357743256,1744422634256,-151.0,0.000249,7]
[357743257,1744422634266,-151.0,0.000249,7]
[357743258,1744422634276,-151.0,0.000249,7]
[357743259,1744422634286,-311.61907,0.000249,7]
[357743260,1744422634296,-311.61907,0.000249,7]
[357743261,1744422634306,-311.61907,0.000249,7]
[357743262,1744422634316,-311.61907,0.000249,7]
[357743263,1744422634326,-151.0,0.000249,7]
[357743264,1744422634336,-151.0,0.000249,7]
[357743265,1744422634346,-151.0,0.000249,7]
[357743266,1744422634356,-151.0,0.000249,7]
[357743267,1744422634366,-151.0,0.000249,7]
[357743268,1744422634376,-151.0,0.000249,7]
[357743269,1744422634386,-242.323162,0.000249,7]
[357743270,1744422634396,-331.667222,0.000249,7]
[357743271,1744422634406,-331.667222,0.000249,7]
[357743272,1744422634416,-331.667222,0.000249,7]
[357743273,1744422634425,-331.667222,0.000249,7]
[357743274,1744422634436,-151.0,0.000249,7]
[357743275,1744422634446,-226.409415,0.000249,7]
[357743276,1744422634456,-226.409415,0.000249,7]
[357743277,1744422634466,-173.42429,0.000249,7]
[357743278,1744422634476,-173.42429,0.000249,7]
[357743279,1744422634486,-151.0,0.000249,7]
[357743280,1744422634496,-151.0,0.000249,8]
[357743281,1744422634506,-1693.273385,0.000249,7]
[357743282,1744422634516,-1693.273385,0.000249,7]
[357743283,1744422634525,-151.0,0.000249,7]
[357743284,1744422634535,-276.32373,0.000249,7]
[357743285,1744422634545,-276.32373,0.000249,7]
[357743286,1744422634555,-1693.273385,0.000249,7]
[357743287,1744422634565,-1693.273385,0.000249,7]
[357743288,1744422634576,-276.32373,0.000249,7]
[357743289,1744422634586,-276.32373,0.000249,7]
[357743290,1744422634597,-151.0,0.000249,7]
[357743291,1744422634607,-151.0,0.000249,7]
[357743292,1744422634616,-176.060472,0.000249,7]
[357743293,1744422634626,-151.0,0.000249,7]
[357743294,1744422634636,-151.0,0.000249,7]
[357743295,1744422634645,-151.0,0.000249,7]
[357743296,1744422634655,-151.0,0.000249,7]
[357743297,1744422634665,-375.623182,0.000249,2]
[357743298,1744422634675,-375.623182,0.000249,2]
[357743299,1744422634685,-375.623182,0.000249,2]
[357743300,1744422634694,-375.623182,0.000249,2]
[357743301,1744422634704,-151.0,0.000249,7]
[357743302,1744422634714,-220.237594,0.000249,7]
[357743303,1744422634724,-151.0,0.000249,7]
[357743304,1744422634734,-151.0,0.000249,7]
[357743305,1744422634743,-151.0,0.000249,7]
[357743306,1744422634755,-205.618626,0.000249,7]
[357743307,1744422634764,-220.237594,0.000249,7]
[357743308,1744422634774,-205.618626,0.000249,7]
[357743309,1744422634784,-151.0,0.000249,7]
[357743310,1744422634794,-151.0,0.000249,7]
[357743311,1744422634804,-151.0,0.000249,7]
[357743312,1744422634813,-151.0,0.000249,7]
[357743313,1744422634823,-178.643279,0.000249,7]
[357743314,1744422634833,-178.643279,0.000249,7]
[357743315,1744422634843,-151.0,0.000249,2]
[357743316,1744422634853,-151.0,0.000249,2]
[357743317,1744422634863,-151.0,0.000249,2]
[357743318,1744422634873,-178.643279,0.000249,7]
[357743319,1744422634883,-178.643279,0.000249,7]
[357743320,1744422634893,-151.0,0.000249,2]
[357743321,1744422634902,-151.0,0.000249,7]
[357743322,1744422634912,-158.931906,0.000249,7]
[357743323,1744422634922,-151.178773,0.000249,7]
[357743324,1744422634932,-693.35084,0.000249,7]
[357743325,1744422634942,-693.35084,0.000249,7]
[357743326,1744422634958,-204.775498,0.000249,7]
[357743327,1744422634972,-204.775498,0.000249,7]
[357743328,1744422634982,-202.779114,0.000249,7]
[357743329,1744422634993,-202.779114,0.000249,7]
[357743330,1744422635003,-253.640342,0.000249,7]
[357743331,1744422635013,-151.0,0.000249,7]
[357743332,1744422635023,-253.640342,0.000249,7]
[357743333,1744422635035,-151.0,0.000249,7]
[357743334,1744422635047,-151.0,0.000249,7]
[357743335,1744422635060,-151.0,0.000249,7]
[357743336,1744422635069,-151.0,0.000249,7]
[357743337,1744422635078,-151.0,0.000249,7]
[357743338,1744422635089,-151.0,0.000249,7]
[357743339,1744422635099,-265.170122,0.000249,7]
[357743340,1744422635109,-151.0,0.000249,7]
[357743341,1744422635119,-594.391267,0.000249,7]
[357743342,1744422635129,-594.391267,0.000249,7]
[357743343,1744422635139,-353.279322,0.000249,7]
[357743344,1744422635150,-353.279322,0.000249,7]
[357743345,1744422635160,-214.142481,0.000249,7]
[357743346,1744422635318,-151.0,0.000249,7]
[357743347,1744422635328,-8307.69857668,0.000249,2]
[357743390,1744422638353,-358.0,0.000245,3]
[357743392,1744422638363,-358.0,0.000245,3]
[357743394,1744422638373,-176.38753068,0.00024799,2]
[357743396,1744422638384,-183.589132,0.00024799,2]
[357743398,1744422638394,-3328.08381868,0.000249,2]
[357743404,1744422640212,-183.589132,0.00024899,2]
[357743405,1744422640222,-176.38753068,0.00024899,2]
[357743406,1744422640233,-21805.60333732,0.000249,2]
[357743407,1744422640291,-12396.86730928,0.000249,2]
[357743409,1744422640304,-52315.32595321,0.000249,2]
[357743410,1744422640316,-3774.22413629,0.000249,2]
[357743428,1744422642999,-280.81555529,0.00024372,2]
[357743445,1744422646187,-7.78719266,0.00024372,2]
[357743446,1744422646198,-183.589132,0.00024899,2]
[357743447,1744422646207,-176.38753068,0.00024899,2]
[357743448,1744422646217,-10135.35403614,0.000249,2]
[357743449,1744422646228,-2000.0,0.000249,2]
[357743450,1744422646240,-8647.56086692,0.000249,2]
[357743462,1744423207969,330.031,0.00027,30]
[357743642,1744423838250,-620.77841263,0.00021643,2]
[357743644,1744423838262,-750.44887794,0.00021743,2]
[357743647,1744423838272,-250.0,0.00021943,2]
[357743649,1744423838281,-237.22622681,0.00021943,2]
[357743651,1744423838291,-250.0,0.00021943,2]
[357743653,1744423838301,-183.75207541,0.00021943,2]
[357743655,1744423838310,-9146.111876,0.00022974,2]
[357743658,1744423838337,-11014.9946597,0.00022974,2]
[357743660,1744423838347,-447.3965824,0.00023226,2]
[357743662,1744423838357,-267.95988159,0.0002336,2]
[357743664,1744423838367,-498.50131586,0.00024115,2]
[357743666,1744423838377,-188.7112634,0.00024152,2]
[357743669,1744423838387,-300.0,0.00024199,2]
[357743671,1744423838398,-300.0,0.00024271,2]
[357743673,1744423838408,-464.86714021,0.00024272,2]
[357743675,1744423838418,-500.0,0.00024272,2]
[357743677,1744423838428,-500.0,0.00024272,2]
[357743679,1744423838438,-500.0,0.00024272,2]
[357743681,1744423838447,-375.27079476,0.00024272,2]
[357743683,1744423838457,-500.0,0.00024272,2]
[357743685,1744423838466,-219.60836399,0.00024272,2]
[357743687,1744423838476,-465.98689481,0.00024272,2]
[357743689,1744423838485,-156.75504104,0.00024272,2]
[357743691,1744423838495,-362.60262521,0.00024272,2]
[357743693,1744423838506,-351.69864884,0.00024273,2]
[357743695,1744423838515,-503.89213441,0.00024273,2]
[357743697,1744423838525,-234.56829749,0.00024273,2]
[357743906,1744423840633,-65.43170251,0.00024273,2]
[357743909,1744423840644,-294.08906589,0.00024273,2]
[357743911,1744423840654,-500.0,0.00024273,2]
[357743913,1744423840664,-500.0,0.00024273,2]
[357743915,1744423840674,-500.0,0.00024273,2]
[357743917,1744423840683,-500.0,0.00024273,2]
[357743919,1744423840693,-500.0,0.00024273,2]
[357743921,1744423840705,-7291.4792316,0.00024273,2]
[357744253,1744423843879,-3980.52733429,0.00024273,2]
[357744255,1744423843892,-5815.78892942,0.00024273,2]
[357744455,1744423846303,-101648.10837545,0.00024273,2]
[357747115,1744423958390,991.2,0.00027,30]
[357747123,1744424086514,4114.0,0.00027,30]
[357747136,1744424248963,150.57,0.00027,30]
[357747162,1744424853711,1141.189,0.00027,30]
[357747166,1744424923323,172.72601414,0.00025,120]
[357747167,1744424925345,-151.0,0.000175,4]
[357747258,1744425032451,-4025.50275997,0.000175,4]
[357747260,1744425032461,-277.55987548,0.00021543,2]
[357747262,1744425032472,-250.0,0.00021643,2]
[357747264,1744425032482,-3220.9862798,0.00022763,2]
[357747266,1744425032492,-208.034072,0.00022872,2]
[357747268,1744425032502,-300.0,0.00023799,2]
[357747271,1744425032513,-294.0,0.00023799,2]
[357747273,1744425032523,-1403.3119935,0.000238,2]
[357747275,1744425032533,-263.0,0.00023872,2]
[357747277,1744425032543,-500.0,0.00023873,2]
[357747279,1744425032552,-500.0,0.00023873,2]
[357747281,1744425032562,-500.0,0.00023873,2]
[357747283,1744425032571,-500.0,0.00023873,2]
[357747285,1744425032581,-500.0,0.00023873,2]
[357747287,1744425032591,-782.02001352,0.00023873,2]
[357747289,1744425032602,-288.46921262,0.00023873,2]
[357747291,1744425032611,-394.6,0.0002389,3]
[357747293,1744425032623,-325.40699815,0.00023899,2]
[357747295,1744425032632,-171.25228306,0.00023899,2]
[357747297,1744425032642,-54136.82514032,0.000239,2]